bitfinex-derivatives/quotes_BNBF0:USTF0_20250715
["timestamp","ask_amount","ask_price","bid_price","bid_amount"]
[1752551079900,0.25657567,678.44,677.6,0.98610804]
[1752551080100,0.25657567,678.44,677.59,0.98610804]
[1752551080404,0.25657567,678.44,677.55,0.98610804]
[1752551081298,0.25657567,678.44,677.54,0.98610804]
[1752551081500,0.97124466,678.5,677.53,0.98610804]
[1752551082103,0.97124466,678.5,677.52,0.98610804]
[1752551083004,0.97124466,678.54,677.5,0.98610804]
[1752551084201,1.22780993,678.55,677.5,0.98610804]
[1752551084405,0.97124466,678.53,677.51,0.98610804]
[1752551084704,0.97124466,678.65,677.44,0.98610804]
[1752551084901,0.97124466,678.51,677.53,0.98610804]
[1752551085299,0.97124466,678.51,677.54,0.98610804]
[1752551085501,0.97124466,678.47,677.56,0.98610804]
[1752551085700,0.97124466,678.51,677.54,0.98610804]
[1752551085899,0.25652744,678.78,677.54,0.98610804]
[1752551085900,0.97124466,678.5,677.54,0.98610804]
[1752551086103,0.97124466,678.51,677.54,0.98610804]
[1752551086501,0.97124466,678.53,677.52,0.98610804]
[1752551086901,0.97124466,678.54,677.51,0.98610804]
[1752551087804,0.97124466,678.57,677.49,0.98610804]
[1752551088306,0.97124466,678.58,677.48,0.98610804]
[1752551089002,0.97124466,678.57,677.49,0.98610804]
[1752551089201,0.97124466,678.57,677.48,0.98610804]
[1752551089406,0.25652744,678.78,677.48,0.98610804]
[1752551089407,0.97124466,678.59,677.48,0.98610804]
[1752551090006,0.97124466,678.59,677.47,0.98610804]
[1752551090607,0.97124466,678.59,676.14,3.291326]
[1752551090608,0.97124466,678.58,677.48,0.98610804]
[1752551090807,0.97124466,678.56,677.49,0.98610804]
[1752551091007,0.97124466,678.55,677.49,0.98610804]
[1752551091308,0.97124466,678.61,677.54,0.98610804]
[1752551091608,0.97124466,678.62,677.54,0.98610804]
[1752551092107,0.97124466,678.63,677.54,0.98610804]
[1752551094008,0.97124466,678.64,677.53,0.98610804]
[1752551094205,0.97124466,678.63,677.53,0.98610804]
[1752551094409,0.97124466,678.6,677.55,0.98610804]
[1752551094704,0.97124466,678.62,677.53,0.98610804]
[1752551095011,0.97124466,678.63,677.54,0.98610804]
[1752551095304,0.97124466,678.62,677.54,0.98610804]
[1752551096907,0.97124466,678.63,677.54,0.98610804]
[1752551097708,0.25652744,678.78,677.34,1.3165304]
[1752551097909,0.25652744,678.78,675.92,4.6078564]
[1752551098613,0.25652744,678.78,677.86,0.98802249]
[1752551098813,0.25652744,678.78,677.84,0.98802249]
[1752551099312,0.25652744,678.78,677.79,0.98802249]
[1752551099510,0.25652744,678.78,677.78,0.98802249]
[1752551099911,0.25652744,678.78,677.77,0.98802249]
[1752551100214,0.25652744,678.78,677.37,1.9760449]
[1752551100215,0.25652744,678.78,677.74,0.98802249]
[1752551100610,0.97472563,678.91,677.7,0.98802249]
[1752551100809,0.97472563,678.91,677.72,0.98802249]
[1752551101117,0.25648585,678.68,677.72,0.98802249]
[1752551101312,0.25648585,678.68,677.74,0.98802249]
[1752551101516,0.25648585,678.68,677.76,0.98802249]
[1752551101715,0.25648585,678.68,677.75,0.98802249]
[1752551101915,0.25648585,678.68,677.84,0.98802249]
[1752551102113,0.25648585,678.68,677.79,0.98802249]
[1752551102411,0.25648585,678.68,677.56,0.98802249]
[1752551102611,0.25648585,678.68,677.57,0.98802249]
[1752551102813,0.25648585,678.68,675.8,4.6107716]
[1752551102814,0.25648585,678.68,677.69,0.98802249]
[1752551103315,0.25648585,678.68,677.7,0.98802249]
[1752551103820,0.25648585,678.68,676.57,3.2934083]
[1752551103821,0.25648585,678.68,677.71,0.98802249]
[1752551104219,0.25648585,678.68,677.7,0.98802249]
[1752551105318,0.25648585,678.68,677.73,0.98802249]
[1752551106414,0.25648585,678.68,677.74,0.98802249]
[1752551107319,0.25648585,678.68,677.71,0.98802249]
[1752551107619,0.25648585,678.68,677.68,0.98802249]
[1752551108319,0.25648585,678.68,677.71,0.98802249]
[1752551108620,0.25648585,678.68,677.72,0.98802249]
[1752551108815,0.97472563,678.67,677.75,0.98802249]
[1752551110126,0.97472563,678.66,677.75,0.98802249]
[1752551110326,0.97472563,678.67,677.76,0.98802249]
[1752551110526,0.25648585,678.68,677.77,0.98802249]
[1752551110723,0.25648585,678.68,677.76,0.98802249]
[1752551111526,0.25648585,678.68,677.77,0.98802249]
[1752551111722,0.25648585,678.68,677.59,1.3173633]
[1752551111723,0.25648585,678.68,677.74,0.98802249]
[1752551112022,0.25648585,678.68,677.62,0.98802249]
[1752551112227,0.25648585,678.68,677.78,0.98802249]
[1752551112723,0.25648585,678.68,677.77,0.98802249]
[1752551112924,0.25648585,678.68,677.76,0.98802249]
[1752551113227,0.25648585,678.68,677.75,0.98802249]
[1752551113427,0.97472563,678.88,677.73,0.98802249]
[1752551113627,0.25645561,678.83,677.73,0.98802249]
[1752551113927,0.25645561,678.83,677.77,0.98802249]
[1752551114127,0.97472563,678.91,677.68,0.98802249]
[1752551114323,0.97434179,678.76,677.77,0.98807246]
[1752551114623,0.97434179,678.78,677.76,0.98807246]
[1752551114822,0.97434179,678.79,677.74,0.98807246]
[1752551115026,0.97434179,678.8,677.73,0.98807246]
[1752551115527,0.97434179,678.8,677.72,0.98807246]
[1752551116528,0.97434179,678.82,677.7,0.98807246]
[1752551116725,0.25642443,679.02,677.88,0.98807246]
[1752551117030,0.25642443,679.02,678.06,0.98807246]
[1752551117230,0.25642443,679.02,678.0,0.98807246]
[1752551117429,0.25642443,679.02,677.97,0.98807246]
[1752551118230,0.25642443,679.02,677.96,0.98807246]
[1752551119234,0.25642443,679.02,677.95,0.98807246]
[1752551119528,0.25642443,679.02,678.09,0.98807246]
[1752551120430,0.25642443,679.02,678.08,0.98807246]
[1752551120727,0.25642443,679.02,678.04,0.98807246]
[1752551121329,0.25642443,679.02,678.03,0.985341]
[1752551121633,0.25642443,679.02,677.97,0.985341]
[1752551122430,0.25642443,679.02,677.95,0.985341]
[1752551122629,0.25642443,679.02,677.87,0.985341]
[1752551123240,0.25642443,679.02,677.86,0.985341]
[1752551123633,0.25642443,679.02,677.87,0.985341]
[1752551123928,0.25642443,679.02,677.89,0.985341]
[1752551124135,0.25642443,679.02,677.88,0.985341]
[1752551124433,0.25642443,679.02,677.86,0.985341]
[1752551125729,0.25642443,679.02,677.85,0.985341]
[1752551126234,0.25642443,679.02,677.91,0.985341]
[1752551126732,0.25642443,679.02,677.89,0.985341]
[1752551126931,0.25642443,679.02,677.88,0.985341]
[1752551127935,0.25642443,679.02,677.87,0.985341]
[1752551128230,0.25642443,679.02,677.88,0.985341]
[1752551128431,3.2490854,680.65,676.46,3.2934083]
[1752551128432,0.97256377,679.18,677.91,0.985341]
[1752551128735,0.25634604,679.16,677.92,0.985341]
[1752551128931,0.25634604,679.16,677.89,0.985341]
[1752551129234,0.25634604,679.16,678.16,0.985341]
[1752551129432,0.25634604,679.16,678.05,0.985341]
[1752551130230,0.25634604,679.16,678.04,0.985341]
[1752551131134,0.25634604,679.16,678.05,0.985341]
[1752551131434,0.25634604,679.16,676.71,3.2934083]
[1752551131435,0.25634604,679.16,678.06,0.985341]
[1752551131833,0.25634604,679.16,678.1,0.985341]
[1752551132036,0.25634604,679.16,678.11,0.985341]
[1752551132330,0.25634604,679.16,678.1,0.985341]
[1752551132734,0.25634604,679.16,678.13,0.985341]
[1752551132937,0.25634604,679.16,678.08,0.985341]
[1752551133138,0.25634604,679.16,678.09,0.985341]
[1752551134239,0.25634604,679.16,678.08,0.985341]
[1752551134438,0.25634604,679.16,678.06,0.985341]
[1752551134935,0.25634604,679.16,678.07,0.985341]
[1752551135234,0.25634604,679.16,677.97,0.985341]
[1752551135433,0.25634604,679.16,677.96,0.985341]
[1752551135738,0.25634604,679.16,677.95,0.985341]
[1752551135936,0.25634604,679.16,677.88,0.985341]
[1752551136335,0.25634604,679.16,677.87,0.985341]
[1752551136538,0.25634604,679.16,677.88,0.985341]
[1752551136738,0.25634604,679.16,677.87,0.985341]
[1752551137240,0.25634604,679.16,677.86,0.985341]
[1752551137838,0.25634604,679.16,677.88,0.985341]
[1752551138135,0.25634604,679.16,677.87,0.985341]
[1752551138336,0.25634604,679.16,677.9,0.985341]
[1752551138539,0.25634604,679.16,677.85,0.985341]
[1752551138838,0.25634604,679.16,677.86,0.985341]
[1752551139238,0.25634604,679.16,677.85,0.985341]
[1752551139941,0.25634604,679.16,677.91,0.985341]
[1752551140240,0.25634604,679.16,677.92,0.985341]
[1752551141242,0.25634604,679.16,677.91,0.985341]
[1752551141439,0.25634604,679.16,677.61,1.3173633]
[1752551141440,0.97256377,679.44,678.07,0.985341]
[1752551141645,0.25629034,679.24,678.09,0.985341]
[1752551141846,0.25629034,679.24,678.07,0.985341]
[1752551142143,0.25629034,679.24,678.03,0.985341]
[1752551142341,0.25629034,679.24,678.02,0.985341]
[1752551142640,0.25629034,679.24,678.01,0.985341]
[1752551143444,0.25629034,679.24,677.96,0.985341]
[1752551143642,0.25629034,679.24,677.95,0.985341]
[1752551144345,0.25629034,679.24,677.94,0.985341]
[1752551144645,0.25629034,679.24,678.26,0.985341]
[1752551144845,0.25629034,679.24,678.15,0.985341]
[1752551145045,0.25629034,679.24,676.46,3.2934083]
[1752551145046,0.25629034,679.24,678.18,0.985341]
[1752551145246,0.25629034,679.24,677.91,1.3173633]
[1752551145247,0.25629034,679.24,678.09,0.985341]
[1752551145449,0.25629034,679.24,678.07,0.985341]
[1752551145948,0.25629034,679.24,678.05,0.985341]
[1752551146644,0.25629034,679.24,678.06,0.985341]
[1752551147149,0.25629034,679.24,678.05,0.985341]
[1752551147348,0.25629034,679.24,678.06,0.985341]
[1752551147549,0.25629034,679.24,678.07,0.985341]
[1752551147748,0.25629034,679.24,678.1,0.985341]
[1752551147951,0.25629034,679.24,678.08,0.985341]
[1752551148151,0.25629034,679.24,678.06,0.985341]
[1752551148447,0.25629034,679.24,678.08,0.985341]
[1752551149253,0.25629034,679.24,678.09,0.985341]
[1752551149448,0.25629034,679.24,678.12,0.985341]
[1752551149651,0.25629034,679.24,678.13,0.985341]
[1752551150948,0.25629034,679.24,678.16,0.985341]
[1752551151447,0.25629034,679.24,678.13,0.985341]
[1752551151750,0.25629034,679.24,678.11,0.985341]
[1752551151953,0.25629034,679.24,678.12,0.985341]
[1752551152148,0.25629034,679.24,678.13,0.985341]
[1752551152348,0.25629034,679.24,678.12,0.985341]
[1752551152652,0.25629034,679.24,678.13,0.985341]
[1752551152951,0.25629034,679.24,678.14,0.985341]
[1752551154452,0.25629034,679.24,678.12,0.985341]
[1752551154751,0.25629034,679.24,678.11,0.985341]
[1752551155153,0.25629034,679.24,678.12,0.985341]
[1752551155655,0.25629034,679.24,678.16,0.985341]
[1752551155856,0.25629034,679.24,678.15,0.985341]
[1752551156150,0.25629034,679.24,678.16,0.985341]
[1752551156451,0.25629034,679.24,678.15,0.985341]
[1752551156655,0.25629034,679.24,678.21,0.985341]
[1752551156954,0.25629034,679.24,678.17,0.985341]
[1752551157155,0.25629034,679.24,678.14,0.985341]
[1752551157355,0.25629034,679.24,678.16,0.985341]
[1752551157552,0.25629034,679.24,678.17,0.985341]
[1752551158054,0.25629034,679.24,678.18,0.985341]
[1752551158458,0.25629034,679.24,678.21,0.985341]
[1752551158654,0.25629034,679.24,678.27,0.985341]
[1752551158958,0.25629034,679.24,678.26,0.985341]
[1752551159158,0.25629034,679.24,678.25,0.985341]
[1752551159458,0.25629034,679.24,678.11,0.985341]
[1752551159656,0.25629034,679.24,677.95,1.3173633]
[1752551159657,0.25629034,679.24,678.12,0.985341]
[1752551160059,0.25629034,679.24,678.11,0.985341]
[1752551160259,0.25629034,679.24,678.07,0.985341]
[1752551160459,0.25629034,679.24,678.05,0.985341]
[1752551160659,0.25629034,679.24,678.06,0.985341]
[1752551160860,0.25629034,679.24,678.16,0.985341]
[1752551161056,0.25629034,679.24,678.01,0.985341]
[1752551162060,0.25629034,679.24,677.89,0.985341]
[1752551162357,0.25629034,679.24,677.87,0.985341]
[1752551162560,0.25629034,679.24,677.88,0.985341]
[1752551162757,0.25629034,679.24,677.9,0.985341]
[1752551162954,1.22885411,679.24,677.9,0.985341]
[1752551163356,0.97256377,679.23,677.91,0.985341]
[1752551163560,0.97256377,679.22,677.91,0.985341]
[1752551164260,0.97256377,679.21,677.92,0.985341]
[1752551164561,0.25629034,679.24,676.49,4.6107716]
[1752551164562,0.97256377,679.22,677.9,0.985341]
[1752551164759,0.97256377,679.21,677.91,0.985341]
[1752551165257,0.97256377,679.19,677.93,0.985341]
[1752551165759,0.97256377,679.19,677.92,0.985341]
[1752551165962,0.97256377,679.21,677.92,0.985341]
[1752551166364,0.97256377,679.18,677.93,0.985341]
[1752551166763,0.97256377,679.18,677.94,0.985341]
[1752551166958,0.97256377,679.17,677.94,0.985341]
[1752551167160,0.97256377,679.21,677.95,0.985341]
[1752551167461,0.97256377,679.2,677.96,0.985341]
[1752551167664,0.97338886,679.2,677.96,0.98477605]
[1752551168263,0.97338886,679.18,677.97,0.98477605]
[1752551169265,0.97338886,679.16,677.99,0.98477605]
[1752551169878,0.97338886,679.18,677.97,0.98477605]
[1752551170064,0.97338886,679.19,677.97,0.98477605]
[1752551170364,0.97338886,679.18,677.99,0.98477605]
[1752551170565,0.97338886,679.15,678.01,0.98477605]
[1752551170766,0.97338886,679.16,678.0,0.98477605]
[1752551170962,0.97338886,679.16,677.99,0.98477605]
[1752551171366,0.97338886,679.14,678.01,0.98477605]
[1752551171564,0.97338886,679.49,678.34,0.98477605]
[1752551171763,0.25634604,679.14,678.23,0.98477605]
[1752551171968,0.97338886,679.44,678.25,0.98477605]
[1752551172165,0.97338886,679.46,678.24,0.98477605]
[1752551172367,0.25629789,679.15,678.24,0.98477605]
[1752551172567,0.25629789,679.15,678.26,0.98477605]
[1752551172772,0.25629789,679.15,678.29,0.98477605]
[1752551173268,0.25629789,679.15,678.3,0.98477605]
[1752551174071,0.97338886,679.44,678.3,0.98477605]
[1752551174271,0.25626958,679.25,678.3,0.98477605]
[1752551174468,0.25626958,679.25,678.35,0.98477605]
[1752551174667,0.25626958,679.25,678.4,0.98477605]
[1752551175172,0.97338886,679.42,678.4,0.98477605]
[1752551175471,0.25624128,679.36,678.47,0.98477605]
[1752551175671,0.97338886,679.33,678.53,0.98477605]
[1752551175868,0.25624128,679.36,678.52,0.98477605]
[1752551175869,0.97338886,679.34,678.52,0.98477605]
[1752551176072,0.97338886,679.35,678.52,0.98477605]
[1752551176369,0.97338886,679.35,678.26,1.9760449]
[1752551176370,0.97338886,679.34,678.53,0.98477605]
[1752551177071,0.97338886,679.39,678.58,0.98477605]
[1752551177368,0.97338886,679.41,678.57,0.98477605]
[1752551178279,0.25622241,679.44,678.53,0.98477605]
[1752551179677,0.25622241,679.44,678.51,0.98477605]
[1752551180276,0.25622241,679.44,678.5,0.98477605]
[1752551180477,0.25622241,679.44,678.49,0.98477605]
[1752551180678,0.25622241,679.44,678.5,0.98477605]
[1752551180872,0.25622241,679.44,678.55,0.98477605]
[1752551181072,0.25622241,679.44,678.63,0.98477605]
[1752551181278,0.25622241,679.44,678.62,0.98477605]
[1752551181883,0.25622241,679.44,678.6,0.98477605]
[1752551182078,0.25622241,679.44,678.58,0.98477605]
[1752551182277,0.25622241,679.44,678.57,0.98477605]
[1752551183282,0.25622241,679.44,678.56,0.98477605]
[1752551184580,0.25622241,679.44,678.55,0.98477605]
[1752551185086,0.25622241,679.44,678.53,0.98477605]
[1752551185283,0.25622241,679.44,678.51,0.98477605]
[1752551186585,0.25622241,679.44,678.53,0.98477605]
[1752551186890,0.97338886,679.71,678.55,0.98477605]
[1752551187090,3.2490854,680.87,678.54,0.98477605]
[1752551187091,0.2561696,679.52,678.54,0.98477605]
[1752551187289,0.2561696,679.52,678.57,0.98477605]
[1752551187487,0.2561696,679.52,678.56,0.98477605]
[1752551187692,0.2561696,679.52,678.62,0.98477605]
[1752551188193,0.2561696,679.52,678.61,0.98477605]
[1752551188589,0.2561696,679.52,678.62,0.98477605]
[1752551188788,0.97338886,679.83,678.62,0.98477605]
[1752551188988,0.25613849,679.59,678.62,0.98477605]
[1752551189190,0.25613849,679.59,678.61,0.98477605]
[1752551189592,0.25613849,679.59,678.6,0.98477605]
[1752551190087,0.25613849,679.59,678.55,0.98477605]
[1752551190287,0.25613849,679.59,678.5,0.98477605]
[1752551190486,0.25613849,679.59,678.49,0.98477605]
[1752551190889,0.25613849,679.59,678.48,0.98477605]
[1752551191692,0.25613849,679.59,678.47,0.98477605]
[1752551192094,0.25613849,679.59,678.45,0.98477605]
[1752551192292,0.25613849,679.59,678.43,0.98477605]
[1752551192495,0.25613849,679.59,678.42,0.98477605]
[1752551192791,0.97338886,679.7,678.48,0.98477605]
[1752551192996,0.256163,679.63,678.71,0.98477605]
[1752551193493,0.256163,679.63,678.7,0.98477605]
[1752551193692,0.256163,679.63,678.71,0.98477605]
[1752551194194,0.256163,679.63,678.7,0.98477605]
[1752551194392,0.97338886,679.99,678.69,0.98477605]
[1752551194597,0.25610456,679.67,678.69,0.98477605]
[1752551195299,0.25610456,679.67,678.67,0.98477605]
[1752551195499,0.25610456,679.67,678.68,0.98477605]
[1752551195896,0.25610456,679.67,678.45,1.3173633]
[1752551195897,0.25610456,679.67,678.66,0.98477605]
[1752551197193,0.25610456,679.67,678.65,0.98477605]
[1752551197493,0.25610456,679.67,678.63,0.98477605]
[1752551197798,0.25610456,679.67,678.65,0.98477605]
[1752551198099,0.25610456,679.67,678.66,0.98477605]
[1752551198297,0.25610456,679.67,678.65,0.98477605]
[1752551198897,0.25610456,679.67,678.64,0.98477605]
[1752551199603,0.25610456,679.67,678.65,0.98477605]
[1752551199799,0.25610456,679.67,678.62,0.98477605]
[1752551200101,0.25610456,679.67,678.61,0.98477605]
[1752551200300,0.25610456,679.67,678.6,0.98477605]
[1752551200501,0.25610456,679.67,678.61,0.98477605]
[1752551200704,0.25610456,679.67,678.63,0.98477605]
[1752551200902,0.25610456,679.67,678.6,0.98477605]
[1752551201206,0.25610456,679.67,678.58,0.98477605]
[1752551202305,0.25610456,679.67,677.04,4.6107716]
[1752551202306,0.25610456,679.67,678.5,0.98477605]
[1752551202601,0.25610456,679.67,678.39,0.98477605]
[1752551203605,0.25610456,679.67,678.4,0.98477605]
[1752551204805,0.25610456,679.67,678.39,0.98477605]
[1752551206006,0.25610456,679.67,678.38,0.98477605]
[1752551206403,0.25610456,679.67,678.39,0.98477605]
[1752551207113,0.25610456,679.67,678.37,0.98477605]
[1752551207407,0.25610456,679.67,678.38,0.98477605]
[1752551208911,0.25610456,679.67,678.36,0.98477605]
[1752551209719,0.25610456,679.67,678.34,0.98477605]
[1752551210214,0.25610456,679.67,678.35,0.98477605]
[1752551211108,0.25610456,679.67,678.31,0.98477605]
[1752551211711,0.25610456,679.67,678.32,0.98477605]
[1752551212213,0.25610456,679.67,678.33,0.98477605]
[1752551212910,0.25610456,679.67,678.34,0.98477605]
[1752551213708,0.25610456,679.67,678.33,0.98477605]
[1752551214009,0.97338886,679.62,678.38,0.98477605]
[1752551214209,0.97338886,679.6,678.36,0.98477605]
[1752551214608,0.97338886,679.56,678.39,0.98477605]
[1752551215009,0.97338886,679.56,678.37,0.98477605]
[1752551215309,0.97338886,679.44,678.2,0.98477605]
[1752551215609,0.97338886,679.42,678.17,0.98477605]
[1752551215809,0.97338886,679.39,678.14,0.98477605]
[1752551216012,0.97338886,679.38,678.14,0.98477605]
[1752551216212,0.97338886,679.4,678.11,0.98477605]
[1752551216812,0.97338886,679.38,678.08,0.98477605]
[1752551217012,0.97338886,679.35,678.05,0.98477605]
[1752551217210,0.97338886,679.38,678.02,0.98477605]
[1752551217514,0.97338886,679.39,678.01,0.98477605]
[1752551218310,0.97338886,679.38,677.99,0.98477605]
[1752551218814,0.97338886,679.41,677.97,0.98477605]
[1752551219218,0.97338886,679.42,677.97,0.98477605]
[1752551219816,0.97338886,679.42,677.96,0.98477605]
[1752551220113,0.97338886,679.43,677.96,0.98477605]
[1752551220318,0.97338886,679.41,677.95,0.98477605]
[1752551220518,0.97338886,679.42,677.94,0.98477605]
[1752551221119,0.97338886,679.36,677.93,0.98477605]
[1752551221324,0.97338886,679.35,677.93,0.98477605]
[1752551221518,0.97338886,679.34,677.94,0.98477605]
[1752551221722,0.97338886,679.33,677.95,0.98477605]
[1752551222019,0.97338886,679.37,678.0,0.98477605]
[1752551222222,1.2996341,679.58,676.43,4.6107716]
[1752551222223,0.97338886,679.43,678.02,0.98477605]
[1752551222419,0.97338886,679.44,678.02,0.98477605]
[1752551223225,0.97338886,679.43,678.03,0.98477605]
[1752551224119,0.97338886,679.42,678.04,0.98477605]
[1752551224618,0.97338886,679.41,678.04,0.98477605]
[1752551225320,0.97338886,679.4,678.05,0.98477605]
[1752551226020,0.97338886,679.41,678.05,0.98477605]
[1752551226221,0.97338886,679.4,678.06,0.98477605]
[1752551227225,0.97338886,679.39,678.06,0.98477605]
[1752551228227,0.97338886,679.38,678.07,0.98477605]
[1752551228722,0.97338886,679.39,678.07,0.98477605]
[1752551229226,0.97338886,679.38,678.07,0.98477605]
[1752551229826,0.97338886,679.4,678.06,0.98477605]
[1752551230223,0.97338886,679.39,678.07,0.98477605]
[1752551231130,0.97338886,679.38,678.07,0.98477605]
[1752551231525,0.97338886,679.36,678.08,0.98477605]
[1752551232025,0.97338886,679.35,678.09,0.98477605]
[1752551232228,0.25610456,679.67,678.1,0.98477605]
[1752551232229,0.97338886,679.34,678.1,0.98477605]
[1752551232928,0.97338886,679.4,678.06,0.98477605]
[1752551233130,0.97338886,679.39,678.06,0.98477605]
[1752551233330,0.97338886,679.25,678.15,0.98477605]
[1752551233529,0.97338886,679.41,678.3,0.98477605]
[1752551233729,0.97338886,679.5,678.39,0.98477605]
[1752551233932,0.97338886,679.51,678.41,0.98477605]
[1752551234129,0.97338886,679.52,678.4,0.98477605]
[1752551234332,0.97338886,679.52,678.41,0.98477605]
[1752551234936,0.97338886,679.55,678.38,0.98477605]
[1752551236137,0.97338886,679.57,678.37,0.98477605]
[1752551237135,0.97338886,679.6,678.35,0.98477605]
[1752551237335,0.97338886,679.64,678.33,0.98477605]
[1752551239643,0.97338886,679.66,678.32,0.98477605]
[1752551239843,0.25610456,679.67,678.36,0.98477605]
[1752551242745,0.25610456,679.67,678.34,0.98477605]
[1752551242945,0.25610456,679.67,678.35,0.98477605]
[1752551243945,0.25610456,679.67,678.37,0.98477605]
[1752551244546,1.22949342,679.67,678.38,0.98477605]
[1752551244841,0.25610456,679.67,678.37,0.98477605]
[1752551247347,0.25610456,679.67,678.36,0.98477605]
[1752551248367,0.25610456,679.67,678.37,0.98477605]
[1752551248747,0.25610456,679.67,678.45,0.98477605]
[1752551249247,0.25610456,679.67,678.46,0.98477605]
[1752551249443,0.25610456,679.67,678.45,0.98477605]
[1752551249643,0.25610456,679.67,678.23,1.3173633]
[1752551249644,0.25610456,679.67,678.42,0.98477605]
[1752551250047,0.25610456,679.67,678.41,0.98477605]
[1752551250248,0.25610456,679.67,678.4,0.98477605]
[1752551250547,0.25610456,679.67,678.38,0.98477605]
[1752551251043,0.25610456,679.67,678.4,0.98477605]
[1752551253048,0.25610456,679.67,678.41,0.98477605]
[1752551254043,0.25610456,679.67,678.19,1.3173633]
[1752551254044,0.25610456,679.67,678.42,0.98477605]
[1752551254246,0.25610456,679.67,678.19,1.3173633]
[1752551254247,1.22949342,679.67,678.43,0.98477605]
[1752551254449,0.97338886,679.66,678.43,0.98477605]
[1752551254944,0.25610456,679.67,678.42,0.98477605]
[1752551255249,0.97338886,679.61,678.47,0.98477605]
[1752551255446,0.97338886,679.63,678.46,0.98477605]
[1752551256150,0.97338886,679.66,678.49,0.98477605]
[1752551256346,0.25610456,679.67,678.54,0.98477605]
[1752551257048,1.22949342,679.67,678.54,0.98477605]
[1752551257250,1.22949342,679.67,678.55,0.98477605]
[1752551257452,0.97338886,679.66,678.54,0.98477605]
[1752551257748,0.97338886,679.65,678.53,0.98477605]
[1752551258154,0.97338886,679.64,678.54,0.98477605]
[1752551259251,0.97338886,679.63,678.55,0.98477605]
[1752551259953,0.97338886,679.63,678.54,0.98477605]
[1752551260154,0.97338886,679.63,678.52,0.98477605]
[1752551260353,0.97338886,679.59,678.49,0.98477605]
[1752551260549,0.97338886,679.58,678.49,0.98477605]
[1752551261250,0.97338886,679.53,678.48,0.98477605]
[1752551261455,0.97338886,679.54,678.47,0.98477605]
[1752551261650,0.97338886,679.51,678.49,0.98477605]
[1752551261850,0.97338886,679.48,678.46,0.98477605]
[1752551262055,0.97338886,679.49,678.46,0.98477605]
[1752551262254,1.55573866,679.67,678.42,0.98477605]
[1752551262255,0.97338886,679.57,678.42,0.98477605]
[1752551262454,0.97338886,679.6,678.4,0.98477605]
[1752551262657,0.97338886,679.59,678.4,0.98477605]
[1752551263752,0.97338886,679.58,678.41,0.98477605]
[1752551263956,0.25610456,679.67,676.92,3.2934083]
[1752551263957,0.97338886,679.62,678.45,0.98477605]
[1752551264754,0.97338886,679.52,678.52,0.98477605]
[1752551264957,0.97338886,679.53,678.52,0.98477605]
[1752551265458,0.97338886,679.64,678.63,0.98477605]
[1752551266855,0.97338886,679.65,678.62,0.98477605]
[1752551267458,0.97338886,679.65,678.61,0.98477605]
[1752551269463,0.97338886,679.66,678.61,0.98477605]
[1752551270159,0.97338886,679.66,678.6,0.98477605]
[1752551270463,0.97338886,679.64,678.66,0.98477605]
[1752551271063,0.97338886,679.65,678.65,0.98477605]
[1752551271462,1.22949342,679.67,678.66,0.98477605]
[1752551271662,1.22949342,679.67,678.67,0.98477605]
[1752551272260,0.25610456,679.67,678.67,0.98477605]
[1752551272462,0.25610456,679.67,678.66,0.98477605]
[1752551273661,0.25610456,679.67,678.65,0.98477605]
[1752551274466,0.25610456,679.67,678.66,0.98477605]
[1752551275468,0.25610456,679.67,678.71,0.98477605]
[1752551275967,0.97338886,679.72,678.71,0.98477605]
[1752551276263,0.25610645,679.77,678.8,0.98477605]
[1752551276462,0.25610645,679.77,678.62,1.3173633]
[1752551276463,0.25610645,679.77,678.79,0.98477605]
[1752551276667,0.25610645,679.77,678.78,0.98477605]
[1752551280068,0.25610645,679.77,678.77,0.98477605]
[1752551280369,0.25610645,679.77,678.78,0.98477605]
[1752551280569,0.25610645,679.77,678.8,0.98477605]
[1752551283071,0.25610645,679.77,678.81,0.98477605]
[1752551283567,0.25610645,679.77,678.85,0.98477605]
[1752551284171,0.25610645,679.77,678.84,0.98477605]
[1752551284372,0.25610645,679.77,678.85,0.98477605]
[1752551285271,0.25610645,679.77,678.83,0.98477605]
[1752551285469,0.25610645,679.77,678.81,0.98477605]
[1752551287374,0.25610645,679.77,678.82,0.98477605]
[1752551287877,0.25610645,679.77,678.65,1.3173633]
[1752551288078,0.25610645,679.77,678.82,0.98552539]
[1752551288275,0.25610645,679.77,678.81,0.98552539]
[1752551288477,0.25610645,679.77,678.82,0.98552539]
[1752551288974,0.25610645,679.77,678.77,0.98552539]
[1752551289374,0.25610645,679.77,678.78,0.98552539]
[1752551290274,0.25610645,679.77,678.76,0.98552539]
[1752551290479,0.25610645,679.77,678.77,0.98552539]
[1752551291580,0.25610645,679.77,678.78,0.98552539]
[1752551292475,0.25610645,679.77,678.79,0.98552539]
[1752551293276,0.25610645,679.77,678.78,0.98552539]
[1752551293480,0.25610645,679.77,678.8,0.98552539]
[1752551294181,0.25610645,679.77,678.79,0.98552539]
[1752551294379,0.25610645,679.77,678.8,0.98552539]
[1752551295780,0.25610645,679.77,678.81,0.98552539]